[Event "ROU-ch Men 2018"]
[Site "Olanesti"]
[Date "2018.05.22"]
[Round "9"]
[White "Berechet, Stefan-Mario"]
[Black "Morariu, Daniel"]
[Result "1/2-1/2"]
[ECO "A10"]
[WhiteElo "1879"]
[BlackElo "1656"]
[Annotator "NA RC"]
[PlyCount "129"]
[EventDate "2018.??.??"]
[EventType "swiss"]
[EventCountry "ROU"]
[SourceTitle "playchess.com"]
[Source "ChessBase"]
[SourceQuality "1"]
[TimeControl "40/5400+30:1800+30"]

1. c4 {[%emt 0:00:00]} f5 {[%emt 0:00:16]} 2. Nc3 {[%emt 0:00:00]} e5 {[%emt 0:00:57]} 3. g3 {[%emt 0:00:00]} Nf6 {[%emt 0:00:20]} 4. Bg2 {[%emt 0:00:00]} Be7 {[%emt 0:02:34]} 5. d3 {[%emt 0:00:25]} O-O {[%emt 0:00:58] A21: English Opening: 1...e5 2 Nc3} (5... d6 6. e3 O-O 7. Nge2 c6 8. O-O Be6 9. b3 Nbd7 10. f4 Ng4 11. h3 Ngf6 12. fxe5 Nxe5 13. d4 Nf7 14. d5 Bd7 15. Nd4 Qc8 16. dxc6 bxc6 17. Qc2 {0-1 (39) Sivuk,V (2566)-Deepan Chakkravarthy,J (2478) Chennai 2016}) 6. e3 {[%emt 0:00:14]} Qe8 {[%emt 0:02:34]} 7. Nd5 $146 {[%emt 0:02:32]} ({Predecessor:} 7. Nge2 Nc6 8. Nd5 Bd8 9. Bd2 d6 10. Qc2 a5 11. a3 Qg6 12. O-O-O Ng4 13. Be1 {0-1 (31) Chavez Lazo,J (2192)-Sequera Paolini,J (2427) San Felipe 2008}) 7... Nxd5 {[%emt 0:00:53]} 8. Bxd5+ {[%emt 0:00:05]} Kh8 {[%emt 0:00:05]} 9. Ne2 {[%emt 0:00:24]} c6 {[%emt 0:00:45]} 10. Bg2 {[%emt 0:00:05]} d6 {[%emt 0:02:24]} 11. O-O {[%emt 0:00:32]} Be6 {[%emt 0:02:24]} 12. Nc3 {[%emt 0:02:06]} Nd7 {[%emt 0:01:13]} 13. Qe2 {[%emt 0:00:20]} Qf7 {[%emt 0:02:58]} 14. b3 {[%emt 0:01:12]} Nf6 {[%emt 0:05:53]} 15. Bb2 {[%emt 0:06:49]} Rae8 {[%emt 0:02:53]} 16. f4 {[%emt 0:00:48]} Bd8 {[%emt 0:02:54]} 17. fxe5 {[%emt 0:06:09]} dxe5 {[%emt 0:02:36]} 18. Na4 {[%emt 0:00:55]} Bc7 {[%emt 0:01:22]} 19. Nc5 {[%emt 0:05:30]} Bc8 {[%emt 0:00:29]} 20. Bf3 {[%emt 0:13:21]} Qg6 {[%emt 0:10:03]} 21. Qg2 {[%emt 0:18:03]} Qh6 {[%emt 0:06:15]} 22. Rae1 {[%emt 0:07:11]} f4 {[%emt 0:13:12]} 23. g4 {[%emt 0:02:29]} Qg5 {[%emt 0:04:08]} 24. exf4 {[%emt 0:01:58]} exf4 {[%emt 0:03:08]} 25. Ne4 {[%emt 0:10:24]} Nxe4 {[%emt 0:01:16]} 26. dxe4 {[%emt 0:00:49]} Be5 {[%emt 0:09:32]} 27. Bxe5 {[%emt 0:01:40]} Rxe5 {[%emt 0:00:32]} 28. Rd1 {[%emt 0:00:11]} Rfe8 {[%emt 0:00:57]} 29. Rd2 {[%emt 0:03:05]} Kg8 {[%emt 0:07:13]} 30. Rfd1 {[%emt 0:00:32]} Be6 {[%emt 0:00:45]} 31. h3 {[%emt 0:00:47]} Qh4 {[%emt 0:00:45]} 32. Kh2 {[%emt 0:01:30]} h5 {[%emt 0:01:31]} 33. Qf2 {[%emt 0:03:13]} Qxf2+ {[%emt 0:03:09]} 34. Rxf2 {[%emt 0:00:06]} hxg4 {[%emt 0:01:01]} 35. hxg4 {[%emt 0:00:12]} Kf7 {[%emt 0:00:54]} 36. Kg1 {[%emt 0:03:17]} Rh8 {[%emt 0:01:07]} 37. Rg2 {[%emt 0:01:25]} Rg5 {[%emt 0:03:02]} 38. Kf2 {[%emt 0:00:09]} Kf6 {[%emt 0:01:13]} 39. Ke2 {[%emt 0:01:29]} Ke5 {[%emt 0:01:48]} 40. Kf2 {[%emt 0:00:00]} Rh4 {[%emt 0:02:02]} 41. c5 {[%emt 0:09:12]} Kf6 {[%emt 0:02:48]} 42. Rd6 {[%emt 0:00:27]} Rxc5 {[%emt 0:01:50]} 43. g5+ {[%emt 0:02:09]} Ke7 {[%emt 0:06:55]} 44. Rd2 {[%emt 0:00:24]} Rh3 {[%emt 0:01:35]} 45. Bg4 {[%emt 0:09:30]} Bxg4 {[%emt 0:02:25]} 46. Rxg4 {[%emt 0:00:44]} Rh2+ {[%emt 0:01:17]} 47. Rg2 {[%emt 0:00:05] [#]} Rxg2+ {[%emt 0:00:24]} (47... Rh4 $142 $1 48. g6 Rc3) 48. Kxg2 {[%emt 0:00:03]} Rxg5+ {[%emt 0:06:11]} 49. Kf3 {[%emt 0:00:12]} Rc5 {[%emt 0:01:05]} 50. Kxf4 {[%emt 0:00:40]} g5+ {[%emt 0:01:09]} 51. Kg4 {[%emt 0:00:09]} b5 {[%emt 0:01:05]} 52. Rh2 {[%emt 0:00:33]} Ke6 {[%emt 0:00:50]} 53. Rh5 {[%emt 0:06:05]} (53. Rh7 $15) 53... a5 {[%emt 0:00:59]} 54. a3 {[%emt 0:02:41]} Kd6 $19 {[%emt 0:03:19]} 55. Rh8 {[%emt 0:02:53]} Re5 {[%emt 0:01:29]} 56. Kf3 {[%emt 0:00:55]} Kc5 {[%emt 0:00:41]} 57. Ke3 {[%emt 0:00:05]} a4 {[%emt 0:00:34]} 58. bxa4 {[%emt 0:00:16]} bxa4 {[%emt 0:01:40]} 59. Rb8 {[%emt 0:00:08]} Kd6 {[%emt 0:01:40]} 60. Ra8 {[%emt 0:00:12]} Rb5 {[%emt 0:00:42]} 61. Rxa4 {[%emt 0:00:09]} Rb3+ {[%emt 0:00:18]} 62. Ke2 {[%emt 0:04:23]} Ke5 {[%emt 0:00:26]} 63. Rc4 {[%emt 0:00:48]} Rxa3 {[%emt 0:01:00]} 64. Rxc6 {[%emt 0:00:04]} Kxe4 {[%emt 0:00:31]} 65. Rc4+ {[%emt 0:00:07] Rb3} 1/2-1/2